[Event "Early-Titled-Tuesday-Blitz-September-26-2023"]
[Site "Chess.com"]
[Date "2023.09.26"]
[Round "3"]
[White "vugarrasulov"]
[Black "Arek_pacitan"]
[Result "1-0"]
[WhiteElo "2939"]
[BlackElo "2676"]
[TimeControl "180+1"]
[EndTime "8:28:54 PDT"]
[Termination "vugarrasulov won by resignation"]

1. d4 {[%clk 0:03:00.9]} 1... Nf6 {[%clk 0:02:59.5]} 2. c4 {[%clk 0:03:01.6]}
2... e6 {[%clk 0:02:59.8]} 3. Nc3 {[%clk 0:03:00.6]} 3... d5 {[%clk 0:02:56]} 4.
cxd5 {[%clk 0:02:59.9]} 4... exd5 {[%clk 0:02:56.9]} 5. Bg5 {[%clk 0:03:00.1]}
5... c6 {[%clk 0:02:56.8]} 6. e3 {[%clk 0:03:00.4]} 6... Be7 {[%clk 0:02:49.6]}
7. Bd3 {[%clk 0:02:59.9]} 7... O-O {[%clk 0:02:49.1]} 8. Qc2 {[%clk 0:02:59.8]}
8... Nbd7 {[%clk 0:02:45.4]} 9. Nge2 {[%clk 0:02:59.8]} 9... Re8 {[%clk
0:02:45.8]} 10. Bh4 {[%clk 0:02:55]} 10... Nf8 {[%clk 0:02:45.4]} 11. f3 {[%clk
0:02:54.9]} 11... Bd6 {[%clk 0:02:41.9]} 12. Bf2 {[%clk 0:02:52.1]} 12... Qc7
{[%clk 0:02:36.6]} 13. O-O-O {[%clk 0:02:50.8]} 13... b5 {[%clk 0:02:27.7]} 14.
Kb1 {[%clk 0:02:48.7]} 14... b4 {[%clk 0:02:24.1]} 15. Na4 {[%clk 0:02:49]}
15... Be6 {[%clk 0:02:12.5]} 16. g4 {[%clk 0:02:44.4]} 16... Qa5 {[%clk
0:02:06.8]} 17. Rc1 {[%clk 0:02:35.5]} 17... Rec8 {[%clk 0:02:04.7]} 18. Nf4
{[%clk 0:02:31.7]} 18... N6d7 {[%clk 0:02:00.2]} 19. Nxe6 {[%clk 0:02:25]} 19...
fxe6 {[%clk 0:02:01.1]} 20. Bg3 {[%clk 0:02:24]} 20... Be7 {[%clk 0:01:53.9]}
21. Nc5 {[%clk 0:02:22.8]} 21... Nxc5 {[%clk 0:01:44.4]} 22. dxc5 {[%clk
0:02:23.7]} 22... Qd8 {[%clk 0:01:36.4]} 23. h4 {[%clk 0:02:18.2]} 23... a5
{[%clk 0:01:36.3]} 24. g5 {[%clk 0:02:11.1]} 24... a4 {[%clk 0:01:36.5]} 25. Qd2
{[%clk 0:02:01.2]} 25... Qa5 {[%clk 0:01:29.5]} 26. e4 {[%clk 0:01:48.3]} 26...
b3 {[%clk 0:01:27.2]} 27. Qxa5 {[%clk 0:01:47.3]} 27... bxa2+ {[%clk 0:01:20.5]}
28. Kxa2 {[%clk 0:01:48.2]} 28... Rxa5 {[%clk 0:01:21.4]} 29. exd5 {[%clk
0:01:47.8]} 29... cxd5 {[%clk 0:01:10]} 30. c6 {[%clk 0:01:45.5]} 30... a3
{[%clk 0:00:57.6]} 31. b3 {[%clk 0:01:43.8]} 31... Ng6 {[%clk 0:00:51.2]} 32.
Rhe1 {[%clk 0:01:39]} 32... Kf7 {[%clk 0:00:51.2]} 33. h5 {[%clk 0:01:38.8]}
33... Nf8 {[%clk 0:00:50]} 34. f4 {[%clk 0:01:27.9]} 34... g6 {[%clk 0:00:46]}
35. hxg6+ {[%clk 0:01:27.6]} 35... hxg6 {[%clk 0:00:46]} 36. Bf2 {[%clk
0:01:17.8]} 36... Bd6 {[%clk 0:00:31.5]} 37. Bb6 {[%clk 0:01:17.8]} 37... Raa8
{[%clk 0:00:31.5]} 38. Rc2 {[%clk 0:01:18.5]} 38... Rab8 {[%clk 0:00:30]} 39.
Ba5 {[%clk 0:01:07.9]} 39... Ra8 {[%clk 0:00:20.9]} 40. b4 {[%clk 0:01:07.7]}
40... Bxf4 {[%clk 0:00:15.7]} 41. Rf2 {[%clk 0:01:06.9]} 41... Rxc6 {[%clk
0:00:05.7]} 42. Rxf4+ {[%clk 0:01:06.6]} 42... Kg7 {[%clk 0:00:06.6]} 43. Ref1
{[%clk 0:01:01.6]} 43... Rc3 {[%clk 0:00:06.4]} 44. Rf7+ {[%clk 0:00:50.2]}
44... Kg8 {[%clk 0:00:06.2]} 45. Bb5 {[%clk 0:00:50.2]} 45... e5 {[%clk
0:00:06.4]} 46. R1f3 {[%clk 0:00:41.4]} 46... Rxf3 {[%clk 0:00:05.1]} 47. Rxf3
{[%clk 0:00:42.3]} 47... Ne6 {[%clk 0:00:05.8]} 48. Rf6 {[%clk 0:00:41.5]} 48...
Nd4 {[%clk 0:00:05.5]} 49. Rxg6+ {[%clk 0:00:41.8]} 49... Kh7 {[%clk 0:00:05.3]}
50. Rh6+ {[%clk 0:00:40]} 50... Kg7 {[%clk 0:00:05.6]} 51. Bc6 {[%clk 0:00:40]}
51... Rf8 {[%clk 0:00:06]} 52. Bxd5 {[%clk 0:00:39.9]} 52... Rf2+ {[%clk
0:00:06.5]} 53. Kxa3 {[%clk 0:00:40.4]} 53... Nc2+ {[%clk 0:00:06]} 54. Ka4
{[%clk 0:00:40.4]} 54... Ne3 {[%clk 0:00:06.8]} 55. Bb3 {[%clk 0:00:39.3]} 55...
Rb2 {[%clk 0:00:06]} 56. Bc7 {[%clk 0:00:38.7]} 56... Nf5 {[%clk 0:00:05.7]} 57.
Bxe5+ {[%clk 0:00:38.3]} 57... Kf8 {[%clk 0:00:06.2]} 58. Rf6+ {[%clk
0:00:38.6]} 1-0

[Event "Early-Titled-Tuesday-Blitz-September-26-2023"]
[Site "Chess.com"]
[Date "2023.09.26"]
[Round "3"]
[White "cukin84"]
[Black "kroppar"]
[Result "1/2-1/2"]
[WhiteElo "2222"]
[BlackElo "2393"]
[TimeControl "180+1"]
[EndTime "8:28:54 PDT"]
[Termination "Game drawn by agreement"]

1. e4 {[%clk 0:03:00.9]} 1... c5 {[%clk 0:02:59.7]} 2. Nc3 {[%clk 0:02:58.7]}
2... Nc6 {[%clk 0:02:59.5]} 3. Bb5 {[%clk 0:02:57.5]} 3... g6 {[%clk 0:02:57.2]}
4. Bxc6 {[%clk 0:02:57]} 4... dxc6 {[%clk 0:02:57.8]} 5. d3 {[%clk 0:02:57.4]}
5... Bg7 {[%clk 0:02:57.9]} 6. f4 {[%clk 0:02:57.5]} 6... b6 {[%clk 0:02:47.4]}
7. Nf3 {[%clk 0:02:57.5]} 7... Nf6 {[%clk 0:02:47.6]} 8. O-O {[%clk 0:02:57.1]}
8... O-O {[%clk 0:02:48.2]} 9. h3 {[%clk 0:02:53.2]} 9... c4 {[%clk 0:02:42.5]}
10. d4 {[%clk 0:02:52]} 10... b5 {[%clk 0:02:39.3]} 11. a3 {[%clk 0:02:50.8]}
11... a5 {[%clk 0:02:39]} 12. Be3 {[%clk 0:02:48.8]} 12... Bb7 {[%clk
0:02:35.8]} 13. Kh1 {[%clk 0:02:39.9]} 13... b4 {[%clk 0:02:31.1]} 14. axb4
{[%clk 0:02:38.8]} 14... axb4 {[%clk 0:02:32]} 15. Rxa8 {[%clk 0:02:38]} 15...
Qxa8 {[%clk 0:02:30]} 16. e5 {[%clk 0:02:36.1]} 16... bxc3 {[%clk 0:02:22.9]}
17. exf6 {[%clk 0:02:35.4]} 17... exf6 {[%clk 0:02:13.4]} 18. bxc3 {[%clk
0:02:35.2]} 18... Re8 {[%clk 0:02:13.7]} 19. Bg1 {[%clk 0:02:33.2]} 19... Bh6
{[%clk 0:02:05.4]} 20. f5 {[%clk 0:02:29.1]} 20... Qa3 {[%clk 0:01:55.1]} 21.
Re1 {[%clk 0:02:21.8]} 21... Ra8 {[%clk 0:01:37.1]} 22. fxg6 {[%clk 0:02:12.5]}
22... hxg6 {[%clk 0:01:38]} 23. Be3 {[%clk 0:02:02.6]} 23... Bf8 {[%clk
0:01:36.3]} 24. Bd2 {[%clk 0:02:01.2]} 24... Qd6 {[%clk 0:01:31.9]} 25. Qe2
{[%clk 0:01:59.7]} 25... Qg3 {[%clk 0:01:31.4]} 26. Rb1 {[%clk 0:01:46.1]} 26...
Bc8 {[%clk 0:01:23.3]} 27. Be1 {[%clk 0:01:43.5]} 27... Qf4 {[%clk 0:01:18]} 28.
Bd2 {[%clk 0:01:40.5]} 28... Qf5 {[%clk 0:01:14.7]} 29. Be3 {[%clk 0:01:30]}
29... Be6 {[%clk 0:01:13]} 30. Bf2 {[%clk 0:01:23.4]} 30... Bd5 {[%clk
0:01:10.7]} 31. Bg3 {[%clk 0:01:21.7]} 31... Ra2 {[%clk 0:01:01.5]} 32. Rb8
{[%clk 0:01:18.1]} 32... Bxf3 {[%clk 0:00:32.6]} 33. Qxf3 {[%clk 0:01:13.8]}
33... Qxf3 {[%clk 0:00:28.7]} 34. gxf3 {[%clk 0:01:13.6]} 34... Kg7 {[%clk
0:00:29.5]} 35. Rc8 {[%clk 0:01:06.2]} 35... Rxc2 {[%clk 0:00:26.7]} 36. Rxc6
{[%clk 0:01:05.7]} 36... Rxc3 {[%clk 0:00:27]} 37. Bh4 {[%clk 0:01:04.8]} 37...
Rxf3 {[%clk 0:00:23.1]} 38. Kg2 {[%clk 0:01:04.1]} 38... Rf4 {[%clk 0:00:20.7]}
39. Bf2 {[%clk 0:01:02.9]} 39... Rf5 {[%clk 0:00:09.3]} 40. Rxc4 {[%clk
0:01:02]} 40... Rd5 {[%clk 0:00:10]} 41. Kf3 {[%clk 0:00:59.4]} 41... f5 {[%clk
0:00:09.7]} 42. Bg3 {[%clk 0:00:56.4]} 42... Be7 {[%clk 0:00:09.9]} 43. Be5+
{[%clk 0:00:56.2]} 43... Bf6 {[%clk 0:00:09.8]} 44. Bxf6+ {[%clk 0:00:51.8]}
44... Kxf6 {[%clk 0:00:10.7]} 45. h4 {[%clk 0:00:49.8]} 45... Ra5 {[%clk
0:00:08.8]} 46. Kf4 {[%clk 0:00:49.7]} 46... Ra1 {[%clk 0:00:08.9]} 47. Rc6+
{[%clk 0:00:49.3]} 47... Ke7 {[%clk 0:00:08.6]} 48. h5 {[%clk 0:00:45.3]} 48...
Rf1+ {[%clk 0:00:07.8]} 49. Ke5 {[%clk 0:00:44.7]} 49... Re1+ {[%clk 0:00:05]}
50. Kd5 {[%clk 0:00:43.5]} 50... gxh5 {[%clk 0:00:04.4]} 51. Rh6 {[%clk
0:00:41.5]} 51... f4 {[%clk 0:00:03.3]} 52. Rxh5 {[%clk 0:00:41.7]} 52... f3
{[%clk 0:00:03.9]} 53. Rf5 {[%clk 0:00:41.7]} 53... Re3 {[%clk 0:00:04.3]} 54.
Kc5 {[%clk 0:00:40.6]} 54... f6 {[%clk 0:00:04.8]} 55. d5 {[%clk 0:00:40.6]}
55... Kf7 {[%clk 0:00:04.1]} 56. Kd4 {[%clk 0:00:36.8]} 56... Re1 {[%clk
0:00:02.9]} 57. Rxf3 {[%clk 0:00:33.7]} 57... Rd1+ {[%clk 0:00:03.6]} 58. Kc5
{[%clk 0:00:33.6]} 58... Ke7 {[%clk 0:00:03.6]} 59. Kc6 {[%clk 0:00:29.2]} 59...
Rc1+ {[%clk 0:00:03.3]} 60. Kb5 {[%clk 0:00:29.2]} 60... Kd6 {[%clk 0:00:03.1]}
61. Rxf6+ {[%clk 0:00:28.8]} 61... Kxd5 {[%clk 0:00:03.7]} 1/2-1/2

[Event "Early-Titled-Tuesday-Blitz-September-26-2023"]
[Site "Chess.com"]
[Date "2023.09.26"]
[Round "3"]
[White "FontVella8"]
[Black "whitemirrorninja"]
[Result "1-0"]
[WhiteElo "2714"]
[BlackElo "2477"]
[TimeControl "180+1"]
[EndTime "8:28:56 PDT"]
[Termination "FontVella8 won by checkmate"]

1. e4 {[%clk 0:02:57.1]} 1... c5 {[%clk 0:03:00.3]} 2. Nf3 {[%clk 0:02:56.8]}
2... e6 {[%clk 0:03:01]} 3. d4 {[%clk 0:02:56.6]} 3... cxd4 {[%clk 0:03:01.9]}
4. Nxd4 {[%clk 0:02:57.4]} 4... Nc6 {[%clk 0:03:02.5]} 5. Nc3 {[%clk 0:02:57.9]}
5... a6 {[%clk 0:03:02.8]} 6. Be3 {[%clk 0:02:56.4]} 6... Nge7 {[%clk
0:03:02.6]} 7. f4 {[%clk 0:02:50.1]} 7... b5 {[%clk 0:03:01.7]} 8. Bd3 {[%clk
0:02:44.6]} 8... Nxd4 {[%clk 0:03:01.3]} 9. Bxd4 {[%clk 0:02:44.6]} 9... Nc6
{[%clk 0:03:02]} 10. Be3 {[%clk 0:02:44.3]} 10... Bb7 {[%clk 0:03:02.7]} 11. O-O
{[%clk 0:02:43.7]} 11... Rc8 {[%clk 0:03:03.3]} 12. Qf3 {[%clk 0:02:40.1]} 12...
Nb4 {[%clk 0:03:02.7]} 13. Rad1 {[%clk 0:02:39.6]} 13... Bc5 {[%clk 0:02:57.7]}
14. Bxc5 {[%clk 0:02:35.4]} 14... Rxc5 {[%clk 0:02:58.6]} 15. a3 {[%clk
0:02:30.2]} 15... Nxd3 {[%clk 0:02:58.2]} 16. Qxd3 {[%clk 0:02:29.4]} 16... O-O
{[%clk 0:02:57.7]} 17. Qd6 {[%clk 0:02:25.8]} 17... Rc7 {[%clk 0:02:43.7]} 18.
f5 {[%clk 0:02:22]} 18... Bc6 {[%clk 0:02:39.6]} 19. Rd3 {[%clk 0:02:10.2]}
19... Rb7 {[%clk 0:02:33]} 20. Rg3 {[%clk 0:01:19.3]} 20... Qc7 {[%clk
0:01:57.5]} 21. Qd2 {[%clk 0:00:48.5]} 21... Qe5 {[%clk 0:01:50]} 22. f6 {[%clk
0:00:47]} 22... Bxe4 {[%clk 0:01:32.5]} 23. Rxg7+ {[%clk 0:00:39.9]} 23... Kh8
{[%clk 0:01:31.6]} 24. Nxe4 {[%clk 0:00:24.3]} 24... Qxe4 {[%clk 0:01:29.9]} 25.
Qh6 {[%clk 0:00:24.8]} 25... Rbb8 {[%clk 0:01:13.6]} 26. h3 {[%clk 0:00:18.3]}
26... Rg8 {[%clk 0:01:12.1]} 27. Rf4 {[%clk 0:00:17.9]} 27... Qxc2 {[%clk
0:00:39.8]} 28. Kh2 {[%clk 0:00:18]} 28... Qg6 {[%clk 0:00:21.2]} 29. Rxg6
{[%clk 0:00:17.8]} 29... Rxg6 {[%clk 0:00:22]} 30. Qh5 {[%clk 0:00:17.9]} 30...
Rbg8 {[%clk 0:00:19.1]} 31. Rf2 {[%clk 0:00:17.7]} 31... d5 {[%clk 0:00:18.6]}
32. Qe5 {[%clk 0:00:17.1]} 32... Rd8 {[%clk 0:00:15.8]} 33. Rf4 {[%clk
0:00:12.7]} 33... h6 {[%clk 0:00:13.5]} 34. g4 {[%clk 0:00:11.9]} 34... Kh7
{[%clk 0:00:13.9]} 35. Kg3 {[%clk 0:00:12]} 35... Rc8 {[%clk 0:00:13.8]} 36. Qd6
{[%clk 0:00:08.9]} 36... Rgg8 {[%clk 0:00:07.6]} 37. Qd7 {[%clk 0:00:08.3]}
37... Rgf8 {[%clk 0:00:07.7]} 38. h4 {[%clk 0:00:05.2]} 38... Rcd8 {[%clk
0:00:08.2]} 39. Qa7 {[%clk 0:00:05.1]} 39... d4 {[%clk 0:00:08.9]} 40. Rxd4
{[%clk 0:00:04.9]} 40... Rc8 {[%clk 0:00:09]} 41. Rd7 {[%clk 0:00:04.5]} 41...
Kg6 {[%clk 0:00:08.6]} 42. h5+ {[%clk 0:00:04.2]} 42... Kxf6 {[%clk 0:00:08.7]}
43. Qd4+ {[%clk 0:00:04.6]} 43... e5 {[%clk 0:00:09.3]} 44. Qd6+ {[%clk
0:00:04.2]} 44... Kg7 {[%clk 0:00:09.9]} 45. Qg6+ {[%clk 0:00:02.7]} 45... Kh8
{[%clk 0:00:08.1]} 46. Qxh6+ {[%clk 0:00:03.2]} 46... Kg8 {[%clk 0:00:08.8]} 47.
Qg5+ {[%clk 0:00:02.9]} 47... Kh7 {[%clk 0:00:08.7]} 48. Qf5+ {[%clk 0:00:03.1]}
48... Kh6 {[%clk 0:00:07.9]} 49. g5+ {[%clk 0:00:02.8]} 49... Kg7 {[%clk
0:00:07.9]} 50. h6+ {[%clk 0:00:02.8]} 50... Kg8 {[%clk 0:00:08.5]} 51. Qf6
{[%clk 0:00:02.6]} 51... Rc3+ {[%clk 0:00:04.1]} 52. bxc3 {[%clk 0:00:03.5]}
52... Kh7 {[%clk 0:00:04.7]} 53. Qg7# {[%clk 0:00:03.7]} 1-0

[Event "Early-Titled-Tuesday-Blitz-September-26-2023"]
[Site "Chess.com"]
[Date "2023.09.26"]
[Round "3"]
[White "Mikhail_Golubev"]
[Black "salomez"]
[Result "1-0"]
[WhiteElo "2589"]
[BlackElo "2313"]
[TimeControl "180+1"]
[EndTime "8:28:57 PDT"]
[Termination "Mikhail_Golubev won on time"]

1. e4 {[%clk 0:03:00.9]} 1... c5 {[%clk 0:02:56.9]} 2. Nf3 {[%clk 0:03:00.3]}
2... e6 {[%clk 0:02:55.6]} 3. d4 {[%clk 0:03:00.2]} 3... cxd4 {[%clk 0:02:56.5]}
4. Nxd4 {[%clk 0:03:00.4]} 4... Nf6 {[%clk 0:02:57.3]} 5. Nc3 {[%clk 0:02:59.5]}
5... Nc6 {[%clk 0:02:57.9]} 6. a3 {[%clk 0:02:57.3]} 6... Be7 {[%clk 0:02:50.9]}
7. Nxc6 {[%clk 0:02:56.9]} 7... bxc6 {[%clk 0:02:50.7]} 8. e5 {[%clk 0:02:56]}
8... Nd5 {[%clk 0:02:50.5]} 9. Qg4 {[%clk 0:02:54.8]} 9... Kf8 {[%clk
0:02:40.7]} 10. Qg3 {[%clk 0:02:38.7]} 10... Nxc3 {[%clk 0:01:53.1]} 11. Qxc3
{[%clk 0:02:36.6]} 11... f6 {[%clk 0:01:50.6]} 12. Bd3 {[%clk 0:02:25.5]} 12...
fxe5 {[%clk 0:01:46.8]} 13. Qxe5 {[%clk 0:02:25.9]} 13... Bf6 {[%clk 0:01:46.6]}
14. Qg3 {[%clk 0:01:58.4]} 14... Qa5+ {[%clk 0:01:38.6]} 15. Bd2 {[%clk
0:01:43.8]} 15... Qe5+ {[%clk 0:01:37.9]} 16. Qxe5 {[%clk 0:01:43.7]} 16... Bxe5
{[%clk 0:01:38.8]} 17. O-O-O {[%clk 0:01:41.1]} 17... Rb8 {[%clk 0:01:37.5]} 18.
Bb4+ {[%clk 0:01:25.1]} 18... Kf7 {[%clk 0:01:37.2]} 19. c3 {[%clk 0:00:57.2]}
19... d6 {[%clk 0:01:27.4]} 20. Kc2 {[%clk 0:00:45.6]} 20... c5 {[%clk
0:01:25.4]} 21. f4 {[%clk 0:00:39.5]} 21... Bf6 {[%clk 0:01:04.3]} 22. Ba5
{[%clk 0:00:39.4]} 22... Bd7 {[%clk 0:00:55.7]} 23. Bc7 {[%clk 0:00:36.3]} 23...
Ba4+ {[%clk 0:00:53.8]} 24. Kc1 {[%clk 0:00:33.4]} 24... Rbc8 {[%clk 0:00:35.7]}
25. Bxd6 {[%clk 0:00:31.6]} 25... Bxd1 {[%clk 0:00:35.6]} 26. Rxd1 {[%clk
0:00:32.2]} 26... c4 {[%clk 0:00:32.2]} 27. Be4 {[%clk 0:00:29.9]} 27... Rhd8
{[%clk 0:00:31.3]} 28. Bb7 {[%clk 0:00:28.8]} 28... Be7 {[%clk 0:00:13.3]} 29.
Bxc8 {[%clk 0:00:18.2]} 29... Bxd6 {[%clk 0:00:12.6]} 30. Kc2 {[%clk 0:00:17.4]}
30... Ke7 {[%clk 0:00:10.5]} 31. Bb7 {[%clk 0:00:17.1]} 31... Bxf4 {[%clk
0:00:10.3]} 32. Rxd8 {[%clk 0:00:16.7]} 32... Kxd8 {[%clk 0:00:10.3]} 33. g3
{[%clk 0:00:16.7]} 33... Bc7 {[%clk 0:00:06.7]} 34. Bf3 {[%clk 0:00:16.2]} 34...
Ke7 {[%clk 0:00:06]} 35. Be2 {[%clk 0:00:16.1]} 35... Kd6 {[%clk 0:00:05.7]} 36.
Bxc4 {[%clk 0:00:16.6]} 36... e5 {[%clk 0:00:05.8]} 37. Kd3 {[%clk 0:00:16.2]}
37... a5 {[%clk 0:00:04.9]} 38. Ke4 {[%clk 0:00:15.3]} 38... Kc5 {[%clk
0:00:04.7]} 39. Bg8 {[%clk 0:00:13.4]} 39... h6 {[%clk 0:00:04.3]} 40. b4+
{[%clk 0:00:13.1]} 40... axb4 {[%clk 0:00:04.2]} 41. axb4+ {[%clk 0:00:11.8]}
41... Kd6 {[%clk 0:00:04]} 42. Bb3 {[%clk 0:00:11.6]} 42... Kc6 {[%clk
0:00:03.8]} 43. c4 {[%clk 0:00:11.4]} 43... Bb8 {[%clk 0:00:03.7]} 44. Ba4+
{[%clk 0:00:11.3]} 44... Kd6 {[%clk 0:00:03.6]} 45. c5+ {[%clk 0:00:11.4]} 45...
Ke6 {[%clk 0:00:03.1]} 46. Bb3+ {[%clk 0:00:10.9]} 46... Kd7 {[%clk 0:00:03.2]}
47. b5 {[%clk 0:00:10.9]} 47... Kc7 {[%clk 0:00:02.8]} 48. Kd5 {[%clk
0:00:10.5]} 48... Kd7 {[%clk 0:00:02.1]} 49. Bc2 {[%clk 0:00:10.2]} 49... Kc7
{[%clk 0:00:01.9]} 50. Be4 {[%clk 0:00:10.2]} 50... Kd7 {[%clk 0:00:02.2]} 51.
b6 {[%clk 0:00:10.5]} 51... Kc8 {[%clk 0:00:00.4]} 52. c6 {[%clk 0:00:10.6]} 1-0

[Event "Early-Titled-Tuesday-Blitz-September-26-2023"]
[Site "Chess.com"]
[Date "2023.09.26"]
[Round "3"]
[White "Flaccidmoves"]
[Black "luizzy"]
[Result "1-0"]
[WhiteElo "2461"]
[BlackElo "2627"]
[TimeControl "180+1"]
[EndTime "8:28:59 PDT"]
[Termination "Flaccidmoves won by checkmate"]

1. c4 {[%clk 0:03:00.9]} 1... Nf6 {[%clk 0:02:59.1]} 2. Nc3 {[%clk 0:03:00.4]}
2... e5 {[%clk 0:02:56]} 3. Nf3 {[%clk 0:02:59.7]} 3... Nc6 {[%clk 0:02:54.5]}
4. e3 {[%clk 0:02:57.8]} 4... Bb4 {[%clk 0:02:53]} 5. Nd5 {[%clk 0:02:56.8]}
5... Be7 {[%clk 0:02:51.9]} 6. Nxe7 {[%clk 0:02:51.5]} 6... Qxe7 {[%clk
0:02:51.8]} 7. d3 {[%clk 0:02:51.3]} 7... O-O {[%clk 0:02:51.6]} 8. a3 {[%clk
0:02:50.9]} 8... d6 {[%clk 0:02:50.2]} 9. Be2 {[%clk 0:02:48.9]} 9... a5 {[%clk
0:02:43.8]} 10. b3 {[%clk 0:02:45.5]} 10... d5 {[%clk 0:02:12.7]} 11. cxd5
{[%clk 0:02:42.9]} 11... Nxd5 {[%clk 0:02:13.6]} 12. Bb2 {[%clk 0:02:41.5]}
12... f6 {[%clk 0:01:55.3]} 13. O-O {[%clk 0:02:37.8]} 13... Be6 {[%clk
0:01:55.2]} 14. Rc1 {[%clk 0:02:31]} 14... Rfd8 {[%clk 0:01:55.3]} 15. Qc2
{[%clk 0:02:21.7]} 15... Rd7 {[%clk 0:01:47.3]} 16. Rfe1 {[%clk 0:02:15.7]}
16... a4 {[%clk 0:01:31.7]} 17. b4 {[%clk 0:02:05.2]} 17... Nb6 {[%clk
0:01:01.1]} 18. d4 {[%clk 0:01:55.1]} 18... Bb3 {[%clk 0:00:54.3]} 19. Qb1
{[%clk 0:01:52.2]} 19... Bd5 {[%clk 0:00:29.4]} 20. dxe5 {[%clk 0:01:49.5]}
20... Nxe5 {[%clk 0:00:27.6]} 21. Nxe5 {[%clk 0:01:40.4]} 21... fxe5 {[%clk
0:00:28.5]} 22. Qf5 {[%clk 0:01:40.2]} 22... Re8 {[%clk 0:00:24.7]} 23. Red1
{[%clk 0:01:28.6]} 23... c6 {[%clk 0:00:18.2]} 24. b5 {[%clk 0:01:09.1]} 24...
c5 {[%clk 0:00:11.3]} 25. Bc3 {[%clk 0:00:47.7]} 25... Bb3 {[%clk 0:00:10.9]}
26. Rxd7 {[%clk 0:00:44.9]} 26... Nxd7 {[%clk 0:00:10.9]} 27. Bg4 {[%clk
0:00:32.1]} 27... Nf6 {[%clk 0:00:10.9]} 28. Bf3 {[%clk 0:00:26.1]} 28... b6
{[%clk 0:00:11.4]} 29. h4 {[%clk 0:00:23.5]} 29... e4 {[%clk 0:00:10.7]} 30. Be2
{[%clk 0:00:23.7]} 30... Rd8 {[%clk 0:00:09.9]} 31. h5 {[%clk 0:00:20.3]} 31...
Qe6 {[%clk 0:00:09]} 32. Qg5 {[%clk 0:00:17.3]} 32... Rd5 {[%clk 0:00:07.5]} 33.
Qg3 {[%clk 0:00:15.5]} 33... Ne8 {[%clk 0:00:07.2]} 34. h6 {[%clk 0:00:15.3]}
34... g6 {[%clk 0:00:07.1]} 35. Bg4 {[%clk 0:00:12.4]} 35... Qf7 {[%clk
0:00:07.5]} 36. Qb8 {[%clk 0:00:12.2]} 36... Qe7 {[%clk 0:00:06.5]} 37. Qxb6
{[%clk 0:00:11.3]} 37... Rg5 {[%clk 0:00:03]} 38. Bh3 {[%clk 0:00:10.8]} 38...
Rh5 {[%clk 0:00:03]} 39. Qc6 {[%clk 0:00:09.5]} 39... Bf7 {[%clk 0:00:02.7]} 40.
b6 {[%clk 0:00:09.3]} 40... Nd6 {[%clk 0:00:02.9]} 41. Qc7 {[%clk 0:00:08.5]}
41... Qe8 {[%clk 0:00:02.5]} 42. b7 {[%clk 0:00:08.4]} 42... Nxb7 {[%clk
0:00:02.7]} 43. Qxb7 {[%clk 0:00:09.3]} 43... g5 {[%clk 0:00:02.2]} 44. Qc8
{[%clk 0:00:08.9]} 44... Qxc8 {[%clk 0:00:02.3]} 45. Bxc8 {[%clk 0:00:09.8]}
45... Rxh6 {[%clk 0:00:03]} 46. Bf5 {[%clk 0:00:09.9]} 46... Bd5 {[%clk
0:00:02.4]} 47. g4 {[%clk 0:00:10]} 47... Bc6 {[%clk 0:00:02.6]} 48. Be5 {[%clk
0:00:10.1]} 48... Be8 {[%clk 0:00:01.2]} 49. Rxc5 {[%clk 0:00:10.3]} 49... Bf7
{[%clk 0:00:02.1]} 50. Rc8+ {[%clk 0:00:10.1]} 50... Be8 {[%clk 0:00:03]} 51.
Rxe8+ {[%clk 0:00:10.1]} 51... Kf7 {[%clk 0:00:03.9]} 52. Rc8 {[%clk 0:00:10.2]}
52... Rb6 {[%clk 0:00:04.5]} 53. Rc7+ {[%clk 0:00:10.5]} 53... Ke8 {[%clk
0:00:05.3]} 54. Kg2 {[%clk 0:00:09.6]} 54... Rb3 {[%clk 0:00:06.2]} 55. Bd6
{[%clk 0:00:09.3]} 55... h5 {[%clk 0:00:07]} 56. Be6 {[%clk 0:00:08.7]} 56...
Rb1 {[%clk 0:00:06.3]} 57. Rc8# {[%clk 0:00:08.7]} 1-0